{"text_format":"1","workbook":"xlsx","n_sheets":5,"sheets":["ФинЧасть","Заявка","Данные","Персонал","Формулы"],"not_rendered":{"charts":0,"images":0,"macros":1,"external_links":0,"defined_names":2,"comments":0,"pivot_tables":0},"unopened":[],"bounds":{"document_bytes":16777216,"sheet_cells":100000,"rows_first":2000,"rows_last":500,"rows_between":2000,"halvings":0,"cell_chars":16384,"cell_head_chars":4096},"cells_cut":0,"cells_raw":0,"read":"whole","date_system":"1900"}

{"sheet":"ФинЧасть","index":0,"n_rows":11,"n_cols":7,"rows_kept":11,"cut":false,"hidden":true,"merged":[[5,0,5,3],[0,0,0,3],[1,0,1,3],[2,0,2,3],[3,0,3,3],[4,0,4,3],[6,0,6,3],[7,0,7,3],[8,0,8,3],[9,0,9,3],[10,0,10,3]]}
["Командировка продавца-кассира с 04.06 по 19.06 Елена Бузмакова 8-900-375-86-64 (Ср 30000) ЕКБ Белинского В ФОТ для бюджета на выезд (Ср.ЗП)*1,5 =45000+ндфл 2243 (за месячную норму часов+переработки)"]
["Командировка ЗУМ с 04.06 по 19.06 Ксения Распопина 8-922-210-34-46 (Ср 39000) ЕКБ Белинского В ФОТ для бюджета на выезд (Ср.ЗП)*1,5 =58500+ндфл 2550 (за месячную норму часов+переработки)"]
["Командировка продавца с ... по ... Крокодилов Сергей Иванович 8-900-041-65-94(Ср 29100), ЕКБ Гранат, В ФОТ для бюджета на выезд (Ср.ЗП)*1,5=43650+ндфл 2243 руб (за месячную норму часов+переработки)"]
["Командировка Ст. кладовщик с 27.05 по 17.06 Фазилов Илья Ибрагимович 8-963-446-15-63(Ср 31500), ЕКБ Грибоедова, В ФОТ для бюджета на выезд (Ср.ЗП)*1,5=47250+ндфл 2691 руб (за месячную норму часов+переработки)"]
["Командировка кладовщик с ... по ... Грачев Игорь Михайлович 8-977-287-21-88(Ср 34900), МСК Мытищи Селезнева, В ФОТ для бюджета на выезд (Ср.ЗП)*1,5=52350+ндфл 1950 руб (за месячную норму часов+переработки)"]
["Командировка ЗУМ с 27.05 по 17.06 Давыдова Наталья Игоревна 8-901-71-51-499(Ср 48500) МСК Одинцово В ФОТ для бюджета на выезд Ср.ЗП*1,5 =72750+ндфл 2845 руб(за месячную норму часов+переработки) "]
["Командировка Ст. кассира с 08.06 по 17.06 Бондаренко Александра Леонидовна 8-982-649-60-66(Ср 32000) ЕКБ Гранат В ФОТ для бюджета на выезд Ср.ЗП*1,5 =24000+ндфл 2550(за 88 часов)",null,null,null,null,88,{"$f":"32000*F7/176*1.5","v":24000}]
["Командировка Ст. кассира с 25.08 по 08.09 Шелковникова Татьяна Павловна 8-919-766-50-10(Ср 42530) МСК Раменское Михалевича В ФОТ для бюджета на выезд Ср.ЗП*1,5 = 55821 + ндфл 2600(за 154 час)",null,null,null,14,{"$f":"E8*11","v":154},{"$f":"42530*F8/176*1.5","v":55820.625}]
["Командировка Ст. кассира с 04.06 по 17.06 Татьяна Храмова 8-982-611-41-75 (Ср 32000) ЕКБ Белинского В ФОТ для бюджета на выезд (Ср.ЗП)*1,5 =18000+ндфл 2550(за 66 часов)",null,null,null,null,66,{"$f":"32000*F9/176*1.5","v":18000}]
["Командировка ЗУМ с 04.06 по 19.06 Ильиных Евгений 8-982-638-62-01 (Ср 39000 ) ЕКБ Мегаполис В ФОТ для бюджета на выезд (Ср.ЗП)*1,5 =58500+ндфл 2550  (за месячную норму часов+переработки)"]
["Командировка ЗУМ с 04.06 по 19.06 Никита Ячменников 8-908-919-25-31 (Ср 39000) ЕКБ Бабушкина В ФОТ для бюджета на выезд (Ср.ЗП)*1,5 =58500+ндфл 2550 (за месячную норму часов+переработки)"]

{"sheet":"Заявка","index":1,"n_rows":77,"n_cols":5,"rows_kept":77,"cut":false,"hidden":false,"merged":[[33,1,33,3],[34,1,34,3],[23,0,23,3],[30,0,30,3],[29,0,29,3],[28,0,28,3],[25,0,25,3],[24,0,24,3],[26,0,26,3],[27,0,27,3],[0,0,0,3],[1,0,1,3],[2,0,2,3],[3,0,3,3],[4,0,4,3],[36,1,36,3],[37,1,37,3],[35,1,35,3],[53,1,53,3],[38,1,38,3],[6,0,6,3],[11,0,11,3],[10,0,10,3],[9,0,9,3],[8,0,8,3],[7,0,7,3],[19,0,19,3],[21,0,21,3],[22,0,22,3],[20,0,20,3],[12,0,12,3],[13,0,13,3],[14,0,14,3],[15,0,15,3],[16,0,16,3],[17,0,17,3],[18,0,18,3]]}
[{"$f":"Формулы!A27","v":"г. Железнодорожный ТЦ Центральный"},null,null,null,"ИМЯ ФАЙЛА"]
[{"$f":"Формулы!A28","v":"Аренда учебного класса с 11.01 по 15.01 - 4 дня"}]
["К командировкам всех сотрудников добавлен 2 дня - до и 1 день - после, на дорогу и заселение."]
[{"$f":"Формулы!A29","v":"Командировка тренера №1 - с 10.01 по 02.02"}]
[{"$f":"Формулы!A30","v":"Командировка тренера №2 - с 0 по 0"}]
["Старт ап:"]
[{"$f":"IFERROR(INDEX(Формулы!A:A,SMALL(IF((Формулы!$E$2:$E$25<>0)*(Формулы!$G$2:$G$25<>0),ROW(Формулы!$A$2:$A$25)),ROWS($A$7:A7))),\"\")","v":"Командировка ЗУМ с 16.02 по  09.02, Иванов Иван, 8-888-112 (ср.42 ), Самара, в ФОТ для бюджета на выезд (Ср.ЗП)*1,5 = 63 + ндфл 28 руб  (за месячную норму часов+переработки)\n"},null,null,null,1]
[{"$f":"IFERROR(INDEX(Формулы!A:A,SMALL(IF((Формулы!$E$2:$E$25<>0)*(Формулы!$G$2:$G$25<>0),ROW(Формулы!$A$2:$A$25)),ROWS($A$7:A8))),\"\")","v":"Командировка 0 с 16.01 по  09.02, Карпов Карп, 8-888-124 (ср.26 ), Питер, в ФОТ для бюджета на выезд (Ср.ЗП)*1,5 = 39 + ндфл 2 руб  (за месячную норму часов+переработки)\n"},null,null,null,2]
[{"$f":"IFERROR(INDEX(Формулы!A:A,SMALL(IF((Формулы!$E$2:$E$25<>0)*(Формулы!$G$2:$G$25<>0),ROW(Формулы!$A$2:$A$25)),ROWS($A$7:A9))),\"\")","v":""},null,null,null,3]
[{"$f":"IFERROR(INDEX(Формулы!A:A,SMALL(IF((Формулы!$E$2:$E$25<>0)*(Формулы!$G$2:$G$25<>0),ROW(Формулы!$A$2:$A$25)),ROWS($A$7:A10))),\"\")","v":""},null,null,null,4]
[{"$f":"IFERROR(INDEX(Формулы!A:A,SMALL(IF((Формулы!$E$2:$E$25<>0)*(Формулы!$G$2:$G$25<>0),ROW(Формулы!$A$2:$A$25)),ROWS($A$7:A11))),\"\")","v":""},null,null,null,5]
[{"$f":"IFERROR(INDEX(Формулы!A:A,SMALL(IF((Формулы!$E$2:$E$25<>0)*(Формулы!$G$2:$G$25<>0),ROW(Формулы!$A$2:$A$25)),ROWS($A$7:A12))),\"\")","v":""},null,null,null,6]
[{"$f":"IFERROR(INDEX(Формулы!A:A,SMALL(IF((Формулы!$E$2:$E$25<>0)*(Формулы!$G$2:$G$25<>0),ROW(Формулы!$A$2:$A$25)),ROWS($A$7:A13))),\"\")","v":""},null,null,null,7]
[{"$f":"IFERROR(INDEX(Формулы!A:A,SMALL(IF((Формулы!$E$2:$E$25<>0)*(Формулы!$G$2:$G$25<>0),ROW(Формулы!$A$2:$A$25)),ROWS($A$7:A14))),\"\")","v":""},null,null,null,8]
[{"$f":"IFERROR(INDEX(Формулы!A:A,SMALL(IF((Формулы!$E$2:$E$25<>0)*(Формулы!$G$2:$G$25<>0),ROW(Формулы!$A$2:$A$25)),ROWS($A$7:A15))),\"\")","v":""},null,null,null,9]
[{"$f":"IFERROR(INDEX(Формулы!A:A,SMALL(IF((Формулы!$E$2:$E$25<>0)*(Формулы!$G$2:$G$25<>0),ROW(Формулы!$A$2:$A$25)),ROWS($A$7:A16))),\"\")","v":""},null,null,null,10]
[{"$f":"IFERROR(INDEX(Формулы!A:A,SMALL(IF((Формулы!$E$2:$E$25<>0)*(Формулы!$G$2:$G$25<>0),ROW(Формулы!$A$2:$A$25)),ROWS($A$7:A17))),\"\")","v":""},null,null,null,11]
[{"$f":"IFERROR(INDEX(Формулы!A:A,SMALL(IF((Формулы!$E$2:$E$25<>0)*(Формулы!$G$2:$G$25<>0),ROW(Формулы!$A$2:$A$25)),ROWS($A$7:A18))),\"\")","v":""},null,null,null,12]
[{"$f":"IFERROR(INDEX(Формулы!A:A,SMALL(IF((Формулы!$E$2:$E$25<>0)*(Формулы!$G$2:$G$25<>0),ROW(Формулы!$A$2:$A$25)),ROWS($A$7:A19))),\"\")","v":""},null,null,null,13]
[{"$f":"IFERROR(INDEX(Формулы!A:A,SMALL(IF((Формулы!$E$2:$E$25<>0)*(Формулы!$G$2:$G$25<>0),ROW(Формулы!$A$2:$A$25)),ROWS($A$7:A20))),\"\")","v":""},null,null,null,14]
[{"$f":"IFERROR(INDEX(Формулы!A:A,SMALL(IF((Формулы!$E$2:$E$25<>0)*(Формулы!$G$2:$G$25<>0),ROW(Формулы!$A$2:$A$25)),ROWS($A$7:A21))),\"\")","v":""},null,null,null,15]
[{"$f":"IFERROR(INDEX(Формулы!A:A,SMALL(IF((Формулы!$E$2:$E$25<>0)*(Формулы!$G$2:$G$25<>0),ROW(Формулы!$A$2:$A$25)),ROWS($A$7:A22))),\"\")","v":""},null,null,null,16]
[{"$f":"IFERROR(INDEX(Формулы!A:A,SMALL(IF((Формулы!$E$2:$E$25<>0)*(Формулы!$G$2:$G$25<>0),ROW(Формулы!$A$2:$A$25)),ROWS($A$7:A23))),\"\")","v":""},null,null,null,17]
[{"$f":"IFERROR(INDEX(Формулы!A:A,SMALL(IF((Формулы!$E$2:$E$25<>0)*(Формулы!$G$2:$G$25<>0),ROW(Формулы!$A$2:$A$25)),ROWS($A$7:A24))),\"\")","v":""},null,null,null,18]
[{"$f":"IFERROR(INDEX(Формулы!A:A,SMALL(IF((Формулы!$E$2:$E$25<>0)*(Формулы!$G$2:$G$25<>0),ROW(Формулы!$A$2:$A$25)),ROWS($A$7:A25))),\"\")","v":""},null,null,null,19]
[{"$f":"IFERROR(INDEX(Формулы!A:A,SMALL(IF((Формулы!$E$2:$E$25<>0)*(Формулы!$G$2:$G$25<>0),ROW(Формулы!$A$2:$A$25)),ROWS($A$7:A26))),\"\")","v":""},null,null,null,20]
[{"$f":"IFERROR(INDEX(Формулы!A:A,SMALL(IF((Формулы!$E$2:$E$25<>0)*(Формулы!$G$2:$G$25<>0),ROW(Формулы!$A$2:$A$25)),ROWS($A$7:A27))),\"\")","v":""},null,null,null,21]
[{"$f":"IFERROR(INDEX(Формулы!A:A,SMALL(IF((Формулы!$E$2:$E$25<>0)*(Формулы!$G$2:$G$25<>0),ROW(Формулы!$A$2:$A$25)),ROWS($A$7:A28))),\"\")","v":""},null,null,null,22]
[{"$f":"IFERROR(INDEX(Формулы!A:A,SMALL(IF((Формулы!$E$2:$E$25<>0)*(Формулы!$G$2:$G$25<>0),ROW(Формулы!$A$2:$A$25)),ROWS($A$7:A29))),\"\")","v":""},null,null,null,23]
[{"$f":"IFERROR(INDEX(Формулы!A:A,SMALL(IF((Формулы!$E$2:$E$25<>0)*(Формулы!$G$2:$G$25<>0),ROW(Формулы!$A$2:$A$25)),ROWS($A$7:A30))),\"\")","v":""},null,null,null,24]
[]
["Дата","Старшие кассиры, ЗУМы","Продавцы – кассиры","Кладовщики"]
[{"$f":"Данные!B7-1+1","v":"2020-01-10"},null,null,null,"Приезд 1"]
[{"$f":"A33+1","v":"2020-01-11"},"Вводный курс"]
[{"$f":"A34+1","v":"2020-01-12"},"СБ"]
["2020-01-13","Выходной"]
["2020-01-14","1С"]
["2020-01-15","Склад",null,null,"Приезд 2"]
["2020-01-16","Поставка товара -разгрузка, приемка"]
["2020-01-17","Выкладка товара","Выкладка товара","Приемка товара"]
["2020-01-18","Выкладка товара","Выкладка товара","Приемка товара"]
["2020-01-19","Выкладка товара","Выкладка товара","Приемка товара"]
["2020-01-20","Выкладка товара","Выкладка товара","Приемка товара"]
["2020-01-21","Выкладка товара","Выкладка товара","Приемка товара"]
["2020-01-22","Выкладка товара","Выкладка товара","Приемка товара"]
["2020-01-23","Выкладка товара","Выкладка товара","Приемка товара"]
["2020-01-24","Выкладка товара","Выкладка товара","Приемка товара"]
["2020-01-25","Выкладка товара","Выкладка товара","Приемка товара"]
["2020-01-26","Выкладка товара","Выкладка товара","Приемка товара"]
["2020-01-27","Выкладка товара","Выкладка товара","Приемка товара"]
["2020-01-28","Выкладка товара","Выкладка товара","Приемка товара"]
["2020-01-29","Ценники, порядок в зале","Ценники, порядок в зале","Ценники, порядок в зале"]
["2020-01-30","Ценники, порядок в зале","Ценники, порядок в зале","Ценники, порядок в зале"]
["2020-01-31","Открытие"]
["2020-02-01"]
["2020-02-02",null,null,null,"Отъезд тренера "]
["2020-02-03"]
["2020-02-04"]
["2020-02-05"]
["2020-02-06"]
["2020-02-07"]
["2020-02-08",null,null,null,"Отъезд  старт-ап"]
["2020-02-09"]
["2020-02-10"]
["2020-02-11"]
["2020-02-12"]
["2020-02-13"]
["2020-02-14"]
["2020-02-15"]
["2020-02-16"]
["2020-02-17"]
["2020-02-18"]
["2020-02-19"]
["2020-02-20"]
["2020-02-21"]
["2020-02-22"]
["2020-02-23"]

{"sheet":"Данные","index":2,"n_rows":51,"n_cols":3,"rows_kept":51,"cut":false,"hidden":false,"merged":[]}
["Город","Железнодорожный"]
["ТЦ","Центральный"]
["Адрес","Калиновского 1"]
["Нач. обуч.","2020-01-11"]
["Кон. обуч.",{"$f":"B4+C6","v":"2020-01-15"}]
["Кол-во дней",null,4]
["Приезд 1 тренера",{"$f":"B4-1","v":"2020-01-10"}]
["Уезд 1 тренера",{"$f":"B12+2","v":"2020-02-02"},{"$f":"B8-B7+1","v":24}]
[]
[]
["1 Поставка",{"$f":"(B5+1)","v":"2020-01-16"}]
["Тех.открытие",{"$f":"B11+15","v":"2020-01-31"}]
["Празд.открытие"]
["РП","ГС"]
["АГЗ",2]
[null,{"$f":"Формулы!D63","v":"крок"}]
[]
["приезд SU",{"$f":"B5","v":"2020-01-15"},"моя шпоргалка"]
["уезд SU",{"$f":"B18+24","v":"2020-02-08"}]
[]
[]
[]
[]
[]
[]
[]
[]
[]
[]
[]
[]
[]
[]
[]
[]
[]
[]
[]
[]
[]
[]
[]
[]
[]
[]
[]
[]
[]
[]
[]
[{"$f":"CONCATENATE(B30,CHAR(10),B31,CHAR(10),B32,CHAR(10),B33,CHAR(10),B34,CHAR(10),B35,CHAR(10),B36,CHAR(10),B37,CHAR(10),B38,CHAR(10),B39,CHAR(10),B40,CHAR(10),B41,CHAR(10),B42,CHAR(10),B43,CHAR(10),B44,CHAR(10),B45,CHAR(10),B50,CHAR(10),B51,CHAR(10),B52,CHAR(10),B53,CHAR(10),B54,CHAR(10),B55,B56,D57,\" \",E57,\",\",\" \",B57,B58,\" \",D30,\",\",\" \",Данные!A2,\" \",\"\",\"\n\",A53,)","v":"\n\n\n\n\n\n\n\n\n\n\n\n\n\n\n\n\n\n\n\n\n ,  , ТЦ \n"}]

{"sheet":"Персонал","index":3,"n_rows":28,"n_cols":13,"rows_kept":28,"cut":false,"hidden":false,"merged":[]}
["№","ФИО","Должность","Телефон","Город","email","Начало\nкоман-\nдировки","Конец\nкоман-\nдировки","ЗП","Коэф","Команд.\nЗП","НДФЛ"]
[{"$f":"ROW(2:2)-1","v":1},"Петров Петр","ЗУМ","8-888-111","Саратов","direktor-179",null,null,33,1.5,{"$f":"I2*J2","v":49.5},2]
[2,"Иванов Иван","ЗУМ","8-888-112","Самара","direktor-086","16.02","09.02",42,1.5,{"$f":"I3*J3","v":63},28]
[3,"Сидоров Сидр","ПК","8-888-113","Самара"," direktor-212",null,null,22,1.5,{"$f":"I4*J4","v":33},3]
[4,"Василий Алибабаевич","ЗУМ","8-888-114","Пушкин"," direktor-213",null,null,32,1.5,48,3]
[5,"Доцент","БОСС","8-888-115","Пушкино"," direktor-214",null,null,322,1.5,483,22]
[6,"Котов Кот","ЗУМ","8-888-116","Екатеринбург","direktor-008",null,null,45,1.5,{"$f":"I7*J7","v":67.5},27]
[7,"Смиронов Смирн","ПК","8-888-117","Челябинск","direktor-016",null,null,30,1.5,{"$f":"I8*J8","v":45},15]
[8,"ВАКАНТ",null,"8-888-118"]
[9,"ВАКАНТ",null,"8-888-119"]
[10,"Вика","ПК","8-888-120","Новосибирск","direktor-184@",null,null,43,1.5,{"$f":"I11*J11","v":64.5},21]
[11,"Светлогор","ЗУМ","8-888-121","Новокузнецк","direktor-180@",null,null,55,1.5,{"$f":"I12*J12","v":82.5},2]
[12,"ВАКАНТ",null,"8-888-122"]
[13,"Грачев Грач","Кладовщик","8-888-123","Москва","direktor-136",null,null,46,1.5,{"$f":"I14*J14","v":69},2]
[14,"Карпов Карп",null,"8-888-124","Питер","direktor-137","16.01","09.02",26,1.5,{"$f":"I15*J15","v":39},2]
[15,"ВАКАНТ",null,"8-888-125"]
[16,"ВАКАНТ",null,"8-888-126"]
[17,"ВАКАНТ",null,"8-888-127"]
[18,"Митя","Ст. кладовщик","8-888-128","С.-Петербург","direktor-008 ",null,null,40,1.5,{"$f":"I19*J19","v":60},2]
[19,"Настя","Ст. кладовщик","8-888-129","Екатеринбург","direktor-109 ",null,null,41,1.5,61.5,22]
[20,"Коля","Ст.кладовщик","8-888-130","Москва","direktor-092 ",null,null,39,1.5,58.5,2]
[21,"Игорь","Ст.кладовщик","8-888-131","Москва","direktor-004 ",null,null,24,1.5,36,3]
[22,"Викор","Кладовщик","8-888-132","Тагил","direktor-221 ",null,null,35,1.5,52.5,1.7]
[23,"Дима","ст.кладовщик","8-888-133","Томск","direktor-160 ",null,null,25,1.5,37.5,2]
[24,"Саша","ст.кладовщик","8-888-134","Ставрополь","direktor-082 ",null,null,14,1.5,21,3]
[null,null,null,null,null,null,null,null,null,{"$f":"IF(M26<0,0,#REF!)","v":0},{"$f":"I26*1.5/176*J26","v":0},null,{"$f":"H26-G26-1","v":-1}]
[null,null,null,null,null,null,null,null,null,{"$f":"IF(M27<0,0,#REF!)","v":0},{"$f":"I27*1.5/176*J27","v":0},null,{"$f":"H27-G27-1","v":-1}]
[null,null,null,null,null,null,null,null,null,{"$f":"IF(M28<0,0,#REF!)","v":0},{"$f":"I28*1.5/176*J28","v":0},null,{"$f":"H28-G28-1","v":-1}]

{"sheet":"Формулы","index":4,"n_rows":143,"n_cols":24,"rows_kept":143,"cut":false,"hidden":false,"merged":[[70,0,73,0],[81,0,107,0],[33,0,56,0]]}
["Данные Персонала"]
[{"$f":"IF(AND(E2<>0,G2<>0),CONCATENATE(B2,\" \",C2,\" \",D2,\" \",TEXT(E2,\"ДД.ММ\"),\" \",F2,\" \",F82,\" \",G2,H2,\", \",I2,\", \",J2,\" \",K2,L2,\" \",M2,\" \",N2,O2,\" \",P2,\" \",Q2,\" \",R2,\" \",S2,\" \",T2,\" \",U2,CHAR(10)),\"\")","v":""},"Командировка",{"$f":"Персонал!C2","v":"ЗУМ"},"с",{"$f":"Персонал!G2","v":"00:00:00"},"по",{"$f":"Персонал!H2","v":"00:00:00"},null,{"$f":"Персонал!B2","v":"Петров Петр"},{"$f":"Персонал!D2","v":"8-888-111"},"(ср.",{"$f":"Персонал!I2","v":33},"),",{"$f":"Персонал!E2","v":"Саратов"},",","в ФОТ для бюджета на выезд (Ср.ЗП)*1,5 =",{"$f":"Персонал!K2","v":49.5},"+ ндфл",{"$f":"Персонал!L2","v":2},"руб"," (за месячную норму часов+переработки)",null,null,{"$f":"Персонал!F2","v":"direktor-179"}]
[{"$f":"IF(AND(E3<>0,G3<>0),CONCATENATE(B3,\" \",C3,\" \",D3,\" \",TEXT(E3,\"ДД.ММ\"),\" \",F3,\" \",F83,\" \",G3,H3,\", \",I3,\", \",J3,\" \",K3,L3,\" \",M3,\" \",N3,O3,\" \",P3,\" \",Q3,\" \",R3,\" \",S3,\" \",T3,\" \",U3,CHAR(10)),\"\")","v":"Командировка ЗУМ с 16.02 по  09.02, Иванов Иван, 8-888-112 (ср.42 ), Самара, в ФОТ для бюджета на выезд (Ср.ЗП)*1,5 = 63 + ндфл 28 руб  (за месячную норму часов+переработки)\n"},"Командировка",{"$f":"Персонал!C3","v":"ЗУМ"},"с",{"$f":"Персонал!G3","v":"16.02"},"по",{"$f":"Персонал!H3","v":"09.02"},null,{"$f":"Персонал!B3","v":"Иванов Иван"},{"$f":"Персонал!D3","v":"8-888-112"},"(ср.",{"$f":"Персонал!I3","v":42},"),",{"$f":"Персонал!E3","v":"Самара"},",","в ФОТ для бюджета на выезд (Ср.ЗП)*1,5 =",{"$f":"Персонал!K3","v":63},"+ ндфл",{"$f":"Персонал!L3","v":28},"руб"," (за месячную норму часов+переработки)",null,null,{"$f":"Персонал!F3","v":"direktor-086"}]
[{"$f":"IF(AND(E4<>0,G4<>0),CONCATENATE(B4,\" \",C4,\" \",D4,\" \",TEXT(E4,\"ДД.ММ\"),\" \",F4,\" \",F84,\" \",G4,H4,\", \",I4,\", \",J4,\" \",K4,L4,\" \",M4,\" \",N4,O4,\" \",P4,\" \",Q4,\" \",R4,\" \",S4,\" \",T4,\" \",U4,CHAR(10)),\"\")","v":""},"Командировка",{"$f":"Персонал!C4","v":"ПК"},"с",{"$f":"Персонал!G4","v":"00:00:00"},"по",{"$f":"Персонал!H4","v":"00:00:00"},null,{"$f":"Персонал!B4","v":"Сидоров Сидр"},{"$f":"Персонал!D4","v":"8-888-113"},"(ср.",{"$f":"Персонал!I4","v":22},"),",{"$f":"Персонал!E4","v":"Самара"},",","в ФОТ для бюджета на выезд (Ср.ЗП)*1,5 =",{"$f":"Персонал!K4","v":33},"+ ндфл",{"$f":"Персонал!L4","v":3},"руб"," (за месячную норму часов+переработки)",null,null,{"$f":"Персонал!F4","v":" direktor-212"}]
["","Командировка",{"$f":"Персонал!C5","v":"ЗУМ"},"с",{"$f":"Персонал!G5","v":"00:00:00"},"по",{"$f":"Персонал!H5","v":"00:00:00"},null,{"$f":"Персонал!B5","v":"Василий Алибабаевич"},{"$f":"Персонал!D5","v":"8-888-114"},"(ср.",{"$f":"Персонал!I5","v":32},"),",{"$f":"Персонал!E5","v":"Пушкин"},",","в ФОТ для бюджета на выезд (Ср.ЗП)*1,5 =",{"$f":"Персонал!K5","v":48},"+ ндфл",{"$f":"Персонал!L5","v":3},"руб"," (за месячную норму часов+переработки)",null,null,{"$f":"Персонал!F5","v":" direktor-213"}]
["","Командировка",{"$f":"Персонал!C6","v":"БОСС"},"с",{"$f":"Персонал!G6","v":"00:00:00"},"по",{"$f":"Персонал!H6","v":"00:00:00"},null,{"$f":"Персонал!B6","v":"Доцент"},{"$f":"Персонал!D6","v":"8-888-115"},"(ср.",{"$f":"Персонал!I6","v":322},"),",{"$f":"Персонал!E6","v":"Пушкино"},",","в ФОТ для бюджета на выезд (Ср.ЗП)*1,5 =",{"$f":"Персонал!K6","v":483},"+ ндфл",{"$f":"Персонал!L6","v":22},"руб"," (за месячную норму часов+переработки)",null,null,{"$f":"Персонал!F6","v":" direktor-214"}]
["","Командировка",{"$f":"Персонал!C7","v":"ЗУМ"},"с",{"$f":"Персонал!G7","v":"00:00:00"},"по",{"$f":"Персонал!H7","v":"00:00:00"},null,{"$f":"Персонал!B7","v":"Котов Кот"},{"$f":"Персонал!D7","v":"8-888-116"},"(ср.",{"$f":"Персонал!I7","v":45},"),",{"$f":"Персонал!E7","v":"Екатеринбург"},",","в ФОТ для бюджета на выезд (Ср.ЗП)*1,5 =",{"$f":"Персонал!K7","v":67.5},"+ ндфл",{"$f":"Персонал!L7","v":27},"руб"," (за месячную норму часов+переработки)",null,null,{"$f":"Персонал!F7","v":"direktor-008"}]
["","Командировка",{"$f":"Персонал!C8","v":"ПК"},"с",{"$f":"Персонал!G8","v":"00:00:00"},"по",{"$f":"Персонал!H8","v":"00:00:00"},null,{"$f":"Персонал!B8","v":"Смиронов Смирн"},{"$f":"Персонал!D8","v":"8-888-117"},"(ср.",{"$f":"Персонал!I8","v":30},"),",{"$f":"Персонал!E8","v":"Челябинск"},",","в ФОТ для бюджета на выезд (Ср.ЗП)*1,5 =",{"$f":"Персонал!K8","v":45},"+ ндфл",{"$f":"Персонал!L8","v":15},"руб"," (за месячную норму часов+переработки)",null,null,{"$f":"Персонал!F8","v":"direktor-016"}]
["","Командировка",{"$f":"Персонал!C9","v":0},"с",{"$f":"Персонал!G9","v":"00:00:00"},"по",{"$f":"Персонал!H9","v":"00:00:00"},null,{"$f":"Персонал!B9","v":"ВАКАНТ"},{"$f":"Персонал!D9","v":"8-888-118"},"(ср.",{"$f":"Персонал!I9","v":0},"),",{"$f":"Персонал!E9","v":0},",","в ФОТ для бюджета на выезд (Ср.ЗП)*1,5 =",{"$f":"Персонал!K9","v":0},"+ ндфл",{"$f":"Персонал!L9","v":0},"руб"," (за месячную норму часов+переработки)",null,null,{"$f":"Персонал!F9","v":0}]
["","Командировка",{"$f":"Персонал!C10","v":0},"с",{"$f":"Персонал!G10","v":"00:00:00"},"по",{"$f":"Персонал!H10","v":"00:00:00"},null,{"$f":"Персонал!B10","v":"ВАКАНТ"},{"$f":"Персонал!D10","v":"8-888-119"},"(ср.",{"$f":"Персонал!I10","v":0},"),",{"$f":"Персонал!E10","v":0},",","в ФОТ для бюджета на выезд (Ср.ЗП)*1,5 =",{"$f":"Персонал!K10","v":0},"+ ндфл",{"$f":"Персонал!L10","v":0},"руб"," (за месячную норму часов+переработки)",null,null,{"$f":"Персонал!F10","v":0}]
["","Командировка",{"$f":"Персонал!C11","v":"ПК"},"с",{"$f":"Персонал!G11","v":"00:00:00"},"по",{"$f":"Персонал!H11","v":"00:00:00"},null,{"$f":"Персонал!B11","v":"Вика"},{"$f":"Персонал!D11","v":"8-888-120"},"(ср.",{"$f":"Персонал!I11","v":43},"),",{"$f":"Персонал!E11","v":"Новосибирск"},",","в ФОТ для бюджета на выезд (Ср.ЗП)*1,5 =",{"$f":"Персонал!K11","v":64.5},"+ ндфл",{"$f":"Персонал!L11","v":21},"руб"," (за месячную норму часов+переработки)",null,null,{"$f":"Персонал!F11","v":"direktor-184@"}]
["","Командировка",{"$f":"Персонал!C12","v":"ЗУМ"},"с",{"$f":"Персонал!G12","v":"00:00:00"},"по",{"$f":"Персонал!H12","v":"00:00:00"},null,{"$f":"Персонал!B12","v":"Светлогор"},{"$f":"Персонал!D12","v":"8-888-121"},"(ср.",{"$f":"Персонал!I12","v":55},"),",{"$f":"Персонал!E12","v":"Новокузнецк"},",","в ФОТ для бюджета на выезд (Ср.ЗП)*1,5 =",{"$f":"Персонал!K12","v":82.5},"+ ндфл",{"$f":"Персонал!L12","v":2},"руб"," (за месячную норму часов+переработки)",null,null,{"$f":"Персонал!F12","v":"direktor-180@"}]
["","Командировка",{"$f":"Персонал!C13","v":0},"с",{"$f":"Персонал!G13","v":"00:00:00"},"по",{"$f":"Персонал!H13","v":"00:00:00"},null,{"$f":"Персонал!B13","v":"ВАКАНТ"},{"$f":"Персонал!D13","v":"8-888-122"},"(ср.",{"$f":"Персонал!I13","v":0},"),",{"$f":"Персонал!E13","v":0},",","в ФОТ для бюджета на выезд (Ср.ЗП)*1,5 =",{"$f":"Персонал!K13","v":0},"+ ндфл",{"$f":"Персонал!L13","v":0},"руб"," (за месячную норму часов+переработки)",null,null,{"$f":"Персонал!F13","v":0}]
["","Командировка",{"$f":"Персонал!C14","v":"Кладовщик"},"с",{"$f":"Персонал!G14","v":"00:00:00"},"по",{"$f":"Персонал!H14","v":"00:00:00"},null,{"$f":"Персонал!B14","v":"Грачев Грач"},{"$f":"Персонал!D14","v":"8-888-123"},"(ср.",{"$f":"Персонал!I14","v":46},"),",{"$f":"Персонал!E14","v":"Москва"},",","в ФОТ для бюджета на выезд (Ср.ЗП)*1,5 =",{"$f":"Персонал!K14","v":69},"+ ндфл",{"$f":"Персонал!L14","v":2},"руб"," (за месячную норму часов+переработки)",null,null,{"$f":"Персонал!F14","v":"direktor-136"}]
["Командировка 0 с 16.01 по  09.02, Карпов Карп, 8-888-124 (ср.26 ), Питер, в ФОТ для бюджета на выезд (Ср.ЗП)*1,5 = 39 + ндфл 2 руб  (за месячную норму часов+переработки)\n","Командировка",{"$f":"Персонал!C15","v":0},"с",{"$f":"Персонал!G15","v":"16.01"},"по",{"$f":"Персонал!H15","v":"09.02"},null,{"$f":"Персонал!B15","v":"Карпов Карп"},{"$f":"Персонал!D15","v":"8-888-124"},"(ср.",{"$f":"Персонал!I15","v":26},"),",{"$f":"Персонал!E15","v":"Питер"},",","в ФОТ для бюджета на выезд (Ср.ЗП)*1,5 =",{"$f":"Персонал!K15","v":39},"+ ндфл",{"$f":"Персонал!L15","v":2},"руб"," (за месячную норму часов+переработки)",null,null,{"$f":"Персонал!F15","v":"direktor-137"}]
["","Командировка",{"$f":"Персонал!C16","v":0},"с",{"$f":"Персонал!G16","v":"00:00:00"},"по",{"$f":"Персонал!H16","v":"00:00:00"},null,{"$f":"Персонал!B16","v":"ВАКАНТ"},{"$f":"Персонал!D16","v":"8-888-125"},"(ср.",{"$f":"Персонал!I16","v":0},"),",{"$f":"Персонал!E16","v":0},",","в ФОТ для бюджета на выезд (Ср.ЗП)*1,5 =",{"$f":"Персонал!K16","v":0},"+ ндфл",{"$f":"Персонал!L16","v":0},"руб"," (за месячную норму часов+переработки)",null,null,{"$f":"Персонал!F16","v":0}]
["","Командировка",{"$f":"Персонал!C17","v":0},"с",{"$f":"Персонал!G17","v":"00:00:00"},"по",{"$f":"Персонал!H17","v":"00:00:00"},null,{"$f":"Персонал!B17","v":"ВАКАНТ"},{"$f":"Персонал!D17","v":"8-888-126"},"(ср.",{"$f":"Персонал!I17","v":0},"),",{"$f":"Персонал!E17","v":0},",","в ФОТ для бюджета на выезд (Ср.ЗП)*1,5 =",{"$f":"Персонал!K17","v":0},"+ ндфл",{"$f":"Персонал!L17","v":0},"руб"," (за месячную норму часов+переработки)",null,null,{"$f":"Персонал!F17","v":0}]
["","Командировка",{"$f":"Персонал!C18","v":0},"с",{"$f":"Персонал!G18","v":"00:00:00"},"по",{"$f":"Персонал!H18","v":"00:00:00"},null,{"$f":"Персонал!B18","v":"ВАКАНТ"},{"$f":"Персонал!D18","v":"8-888-127"},"(ср.",{"$f":"Персонал!I18","v":0},"),",{"$f":"Персонал!E18","v":0},",","в ФОТ для бюджета на выезд (Ср.ЗП)*1,5 =",{"$f":"Персонал!K18","v":0},"+ ндфл",{"$f":"Персонал!L18","v":0},"руб"," (за месячную норму часов+переработки)",null,null,{"$f":"Персонал!F18","v":0}]
[{"$f":"IF(AND(E19<>0,G19<>0),CONCATENATE(B19,\" \",C19,\" \",D19,\" \",TEXT(E19,\"ДД.ММ\"),\" \",F19,\" \",F99,\" \",G19,H19,\", \",I19,\", \",J19,\" \",K19,L19,\" \",M19,\" \",N19,O19,\" \",P19,\" \",Q19,\" \",R19,\" \",S19,\" \",T19,\" \",U19,CHAR(10)),\"\")","v":""},"Командировка",{"$f":"Персонал!C19","v":"Ст. кладовщик"},"с",{"$f":"Персонал!G19","v":"00:00:00"},"по",{"$f":"Персонал!H19","v":"00:00:00"},null,{"$f":"Персонал!B19","v":"Митя"},{"$f":"Персонал!D19","v":"8-888-128"},"(ср.",{"$f":"Персонал!I19","v":40},"),",{"$f":"Персонал!E19","v":"С.-Петербург"},",","в ФОТ для бюджета на выезд (Ср.ЗП)*1,5 =",{"$f":"Персонал!K19","v":60},"+ ндфл",{"$f":"Персонал!L19","v":2},"руб"," (за месячную норму часов+переработки)",null,null,{"$f":"Персонал!F19","v":"direktor-008 "}]
[{"$f":"IF(AND(E20<>0,G20<>0),CONCATENATE(B20,\" \",C20,\" \",D20,\" \",TEXT(E20,\"ДД.ММ\"),\" \",F20,\" \",F100,\" \",G20,H20,\", \",I20,\", \",J20,\" \",K20,L20,\" \",M20,\" \",N20,O20,\" \",P20,\" \",Q20,\" \",R20,\" \",S20,\" \",T20,\" \",U20,CHAR(10)),\"\")","v":""},"Командировка",{"$f":"Персонал!C20","v":"Ст. кладовщик"},"с",{"$f":"Персонал!G20","v":"00:00:00"},"по",{"$f":"Персонал!H20","v":"00:00:00"},null,{"$f":"Персонал!B20","v":"Настя"},{"$f":"Персонал!D20","v":"8-888-129"},"(ср.",{"$f":"Персонал!I20","v":41},"),",{"$f":"Персонал!E20","v":"Екатеринбург"},",","в ФОТ для бюджета на выезд (Ср.ЗП)*1,5 =",{"$f":"Персонал!K20","v":61.5},"+ ндфл",{"$f":"Персонал!L20","v":22},"руб"," (за месячную норму часов+переработки)",null,null,{"$f":"Персонал!F20","v":"direktor-109 "}]
[{"$f":"IF(AND(E21<>0,G21<>0),CONCATENATE(B21,\" \",C21,\" \",D21,\" \",TEXT(E21,\"ДД.ММ\"),\" \",F21,\" \",F101,\" \",G21,H21,\", \",I21,\", \",J21,\" \",K21,L21,\" \",M21,\" \",N21,O21,\" \",P21,\" \",Q21,\" \",R21,\" \",S21,\" \",T21,\" \",U21,CHAR(10)),\"\")","v":""},"Командировка",{"$f":"Персонал!C21","v":"Ст.кладовщик"},"с",{"$f":"Персонал!G21","v":"00:00:00"},"по",{"$f":"Персонал!H21","v":"00:00:00"},null,{"$f":"Персонал!B21","v":"Коля"},{"$f":"Персонал!D21","v":"8-888-130"},"(ср.",{"$f":"Персонал!I21","v":39},"),",{"$f":"Персонал!E21","v":"Москва"},",","в ФОТ для бюджета на выезд (Ср.ЗП)*1,5 =",{"$f":"Персонал!K21","v":58.5},"+ ндфл",{"$f":"Персонал!L21","v":2},"руб"," (за месячную норму часов+переработки)",null,null,{"$f":"Персонал!F21","v":"direktor-092 "}]
["","Командировка",{"$f":"Персонал!C22","v":"Ст.кладовщик"},"с",{"$f":"Персонал!G22","v":"00:00:00"},"по",{"$f":"Персонал!H22","v":"00:00:00"},null,{"$f":"Персонал!B22","v":"Игорь"},{"$f":"Персонал!D22","v":"8-888-131"},"(ср.",{"$f":"Персонал!I22","v":24},"),",{"$f":"Персонал!E22","v":"Москва"},",","в ФОТ для бюджета на выезд (Ср.ЗП)*1,5 =",{"$f":"Персонал!K22","v":36},"+ ндфл",{"$f":"Персонал!L22","v":3},"руб"," (за месячную норму часов+переработки)",null,null,{"$f":"Персонал!F22","v":"direktor-004 "}]
["","Командировка",{"$f":"Персонал!C23","v":"Кладовщик"},"с",{"$f":"Персонал!G23","v":"00:00:00"},"по",{"$f":"Персонал!H23","v":"00:00:00"},null,{"$f":"Персонал!B23","v":"Викор"},{"$f":"Персонал!D23","v":"8-888-132"},"(ср.",{"$f":"Персонал!I23","v":35},"),",{"$f":"Персонал!E23","v":"Тагил"},",","в ФОТ для бюджета на выезд (Ср.ЗП)*1,5 =",{"$f":"Персонал!K23","v":52.5},"+ ндфл",{"$f":"Персонал!L23","v":1.7},"руб"," (за месячную норму часов+переработки)",null,null,{"$f":"Персонал!F23","v":"direktor-221 "}]
["","Командировка",{"$f":"Персонал!C24","v":"ст.кладовщик"},"с",{"$f":"Персонал!G24","v":"00:00:00"},"по",{"$f":"Персонал!H24","v":"00:00:00"},null,{"$f":"Персонал!B24","v":"Дима"},{"$f":"Персонал!D24","v":"8-888-133"},"(ср.",{"$f":"Персонал!I24","v":25},"),",{"$f":"Персонал!E24","v":"Томск"},",","в ФОТ для бюджета на выезд (Ср.ЗП)*1,5 =",{"$f":"Персонал!K24","v":37.5},"+ ндфл",{"$f":"Персонал!L24","v":2},"руб"," (за месячную норму часов+переработки)",null,null,{"$f":"Персонал!F24","v":"direktor-160 "}]
["","Командировка",{"$f":"Персонал!C25","v":"ст.кладовщик"},"с",{"$f":"Персонал!G25","v":"00:00:00"},"по",{"$f":"Персонал!H25","v":"00:00:00"},null,{"$f":"Персонал!B25","v":"Саша"},{"$f":"Персонал!D25","v":"8-888-134"},"(ср.",{"$f":"Персонал!I25","v":14},"),",{"$f":"Персонал!E25","v":"Ставрополь"},",","в ФОТ для бюджета на выезд (Ср.ЗП)*1,5 =",{"$f":"Персонал!K25","v":21},"+ ндфл",{"$f":"Персонал!L25","v":3},"руб"," (за месячную норму часов+переработки)",null,null,{"$f":"Персонал!F25","v":"direktor-082 "}]
[]
[{"$f":"CONCATENATE(B27,\" \",C27,\" \",D27, E27)","v":"г. Железнодорожный ТЦ Центральный"},"г.",{"$f":"Данные!B1","v":"Железнодорожный"},"ТЦ ",{"$f":"Данные!B2","v":"Центральный"}]
[{"$f":"CONCATENATE(B28,\" \",TEXT(C28,\"ДД.ММ\"),\" \",D28,\" \",TEXT(E28,\"ДД.ММ\"),\" \",F28,\" \",G28,\" \",I28)","v":"Аренда учебного класса с 11.01 по 15.01 - 4 дня"},"Аренда учебного класса с",{"$f":"Данные!B4","v":"2020-01-11"},"по",{"$f":"Данные!B5","v":"2020-01-15"},"-",{"$f":"Данные!C6","v":4},null,"дня"]
[{"$f":"CONCATENATE(B29,\" \",TEXT(C29,\"ДД.ММ\"),\" \",D29,\" \",TEXT(E29,\"ДД.ММ\"))","v":"Командировка тренера №1 - с 10.01 по 02.02"},"Командировка тренера №1 - с",{"$f":"Данные!B7","v":"2020-01-10"},"по",{"$f":"Данные!B8","v":"2020-02-02"}]
[{"$f":"CONCATENATE(B30,\" \",C30,\" \",D30,\" \",E30)","v":"Командировка тренера №2 - с 0 по 0"},"Командировка тренера №2 - с",{"$f":"Данные!B9","v":0},"по",{"$f":"Данные!B10","v":0}]
["B28;\" \";C28;\" \";D28;\" \";E28;\" \";F28;\" \";G28;\" \";I28"]
["Для отправки в Whatsapp"]
[{"$f":"CONCATENATE(\"SU \",Данные!B1,\" \",Данные!A2,\" \",Данные!B2)","v":"SU Железнодорожный ТЦ Центральный"},{"$f":"CONCATENATE(C33,\" \",D33,\" \",E33)","v":"Группа г. Железнодорожный ТЦ Центральный"},"Группа г.",{"$f":"Данные!B1","v":"Железнодорожный"},{"$f":"CONCATENATE(Данные!A2,\" \",Данные!B2)","v":"ТЦ Центральный"}]
[{"$f":"CONCATENATE(B33,CHAR(10),B34,CHAR(10),B35,CHAR(10),B36,CHAR(10),B37,CHAR(10),B38,CHAR(10),B39,CHAR(10),B40,CHAR(10),B41,CHAR(10),B42,CHAR(10),B43,CHAR(10),B44,CHAR(10),B45,CHAR(10),B46,CHAR(10),B47,CHAR(10),B48,CHAR(10),B49,CHAR(10),B50,CHAR(10),B51,CHAR(10),B52,CHAR(10),B53,CHAR(10),B54,CHAR(10),B55,CHAR(10),B56,CHAR(10),B57,CHAR(10),B59,CHAR(10),B60,CHAR(10),B61,CHAR(10),B62,CHAR(10),B63,CHAR(10),CHAR(10),B64,B65,D66,\" \",E66,\",\",\" \",B66,B67,\" \",D33,\",\",\" \",Данные!A2,\" \",Данные!B2,\",\",\" \",Данные!B3,\"\n\",A61)","v":"Группа г. Железнодорожный ТЦ Центральный\nПетров Петр - 0 по 0\nИванов Иван - 16.02 по 09.02\nСидоров Сидр - 0 по 0\nВасилий Алибабаевич - 0 по 0\nДоцент - 0 по 0\nКотов Кот - 0 по 0\nСмиронов Смирн - 0 по 0\nВАКАНТ - 0 по 0\nВАКАНТ - 0 по 0\nВика - 0 по 0\nСветлогор - 0 по 0\nВАКАНТ - 0 по 0\nГрачев Грач - 0 по 0\nКарпов Карп - 16.01 по 09.02\nВАКАНТ - 0 по 0\nВАКАНТ - 0 по 0\nВАКАНТ - 0 по 0\nМитя - 0 по 0\nНастя - 0 по 0\nКоля - 0 по 0\nИгорь - 0 по 0\nВикор - 0 по 0\nДима - 0 по 0\nСаша - 0 по 0\nПервая поставка - 16.01\nТехническое открытие - 31.01\nПраздничное открытие - 0\nРуководитель проекта - ГС, 8-102\nТренер на объекте - крок, 8-907\n\n_________\nДаты командировок указаны без учета дороги! Только даты приезда и отъезда на/с проект(а), при составлении заявки и расчете суточных - учитывайте время необходимое на дорогу!\n_________\nЭлектронная почта руководителя проекта,  ГС sg@m.ru, для подачи заявок на получение денежных средств\n_______\nАдрес объекта: г. Железнодорожный, ТЦ Центральный, Калиновского 1\n_________\nКоллеги АГЗ, напоминаю о табелировании команды стартап в табеле на google диске и о передаче ссылки УМу перед отъездом и напоминании УМу о табелировании команды стартап в данном табеле!"},{"$f":"CONCATENATE(C34,\" \",D34,\" \",E34,\" \",F34, G34)","v":"Петров Петр - 0 по 0"},{"$f":"Персонал!B2","v":"Петров Петр"},"-",{"$f":"Персонал!G2","v":0},"по ",{"$f":"Персонал!H2","v":0}]
[null,{"$f":"CONCATENATE(C35,\" \",D35,\" \",E35,\" \",F35, G35)","v":"Иванов Иван - 16.02 по 09.02"},{"$f":"Персонал!B3","v":"Иванов Иван"},"-",{"$f":"Персонал!G3","v":"16.02"},"по ",{"$f":"Персонал!H3","v":"09.02"}]
[null,{"$f":"CONCATENATE(C36,\" \",D36,\" \",E36,\" \",F36, G36)","v":"Сидоров Сидр - 0 по 0"},{"$f":"Персонал!B4","v":"Сидоров Сидр"},"-",{"$f":"Персонал!G4","v":0},"по ",{"$f":"Персонал!H4","v":0}]
[null,"Василий Алибабаевич - 0 по 0",{"$f":"Персонал!B5","v":"Василий Алибабаевич"},"-",{"$f":"Персонал!G5","v":0},"по ",{"$f":"Персонал!H5","v":0},null,null,null,null,null,"(",{"$f":"Персонал!J22","v":1.5},"часов)"]
[null,"Доцент - 0 по 0",{"$f":"Персонал!B6","v":"Доцент"},"-",{"$f":"Персонал!G6","v":0},"по ",{"$f":"Персонал!H6","v":0},null,null,null,null,null,"(",{"$f":"Персонал!J26","v":0},"часов)"]
[null,"Котов Кот - 0 по 0",{"$f":"Персонал!B7","v":"Котов Кот"},"-",{"$f":"Персонал!G7","v":0},"по ",{"$f":"Персонал!H7","v":0},null,null,null,null,null,"(",{"$f":"Персонал!J27","v":0},"часов)"]
[null,"Смиронов Смирн - 0 по 0",{"$f":"Персонал!B8","v":"Смиронов Смирн"},"-",{"$f":"Персонал!G8","v":0},"по ",{"$f":"Персонал!H8","v":0},null,null,null,null,null,"(",{"$f":"Персонал!J28","v":0},"часов)"]
[null,"ВАКАНТ - 0 по 0",{"$f":"Персонал!B9","v":"ВАКАНТ"},"-",{"$f":"Персонал!G9","v":0},"по ",{"$f":"Персонал!H9","v":0}]
[null,"ВАКАНТ - 0 по 0",{"$f":"Персонал!B10","v":"ВАКАНТ"},"-",{"$f":"Персонал!G10","v":0},"по ",{"$f":"Персонал!H10","v":0}]
[null,"Вика - 0 по 0",{"$f":"Персонал!B11","v":"Вика"},"-",{"$f":"Персонал!G11","v":0},"по ",{"$f":"Персонал!H11","v":0}]
[null,"Светлогор - 0 по 0",{"$f":"Персонал!B12","v":"Светлогор"},"-",{"$f":"Персонал!G12","v":0},"по ",{"$f":"Персонал!H12","v":0}]
[null,"ВАКАНТ - 0 по 0",{"$f":"Персонал!B13","v":"ВАКАНТ"},"-",{"$f":"Персонал!G13","v":0},"по ",{"$f":"Персонал!H13","v":0}]
[null,"Грачев Грач - 0 по 0",{"$f":"Персонал!B14","v":"Грачев Грач"},"-",{"$f":"Персонал!G14","v":0},"по ",{"$f":"Персонал!H14","v":0}]
[null,"Карпов Карп - 16.01 по 09.02",{"$f":"Персонал!B15","v":"Карпов Карп"},"-",{"$f":"Персонал!G15","v":"16.01"},"по ",{"$f":"Персонал!H15","v":"09.02"}]
[null,"ВАКАНТ - 0 по 0",{"$f":"Персонал!B16","v":"ВАКАНТ"},"-",{"$f":"Персонал!G16","v":0},"по ",{"$f":"Персонал!H16","v":0}]
[null,"ВАКАНТ - 0 по 0",{"$f":"Персонал!B17","v":"ВАКАНТ"},"-",{"$f":"Персонал!G17","v":0},"по ",{"$f":"Персонал!H17","v":0}]
[null,"ВАКАНТ - 0 по 0",{"$f":"Персонал!B18","v":"ВАКАНТ"},"-",{"$f":"Персонал!G18","v":0},"по ",{"$f":"Персонал!H18","v":0}]
[null,"Митя - 0 по 0",{"$f":"Персонал!B19","v":"Митя"},"-",{"$f":"Персонал!G19","v":0},"по ",{"$f":"Персонал!H19","v":0}]
[null,"Настя - 0 по 0",{"$f":"Персонал!B20","v":"Настя"},"-",{"$f":"Персонал!G20","v":0},"по ",{"$f":"Персонал!H20","v":0}]
[null,"Коля - 0 по 0",{"$f":"Персонал!B21","v":"Коля"},"-",{"$f":"Персонал!G21","v":0},"по ",{"$f":"Персонал!H21","v":0}]
[null,"Игорь - 0 по 0",{"$f":"Персонал!B22","v":"Игорь"},"-",{"$f":"Персонал!G22","v":0},"по ",{"$f":"Персонал!H22","v":0}]
[null,"Викор - 0 по 0",{"$f":"Персонал!B23","v":"Викор"},"-",{"$f":"Персонал!G23","v":0},"по ",{"$f":"Персонал!H23","v":0}]
[null,"Дима - 0 по 0",{"$f":"Персонал!B24","v":"Дима"},"-",{"$f":"Персонал!G24","v":0},"по ",{"$f":"Персонал!H24","v":0}]
[null,"Саша - 0 по 0",{"$f":"Персонал!B25","v":"Саша"},"-",{"$f":"Персонал!G25","v":0},"по ",{"$f":"Персонал!H25","v":0}]
[]
[{"$f":"CONCATENATE(B33,CHAR(10),B34,CHAR(10),B35,CHAR(10),B36,CHAR(10),B37,CHAR(10),B38,CHAR(10),B39,CHAR(10),B40,CHAR(10),B41,CHAR(10),B42,CHAR(10),B43,CHAR(10),B44,CHAR(10),B45,CHAR(10),B46,CHAR(10),B47,CHAR(10),B48,CHAR(10),B59,CHAR(10),B60,CHAR(10),B61,CHAR(10),B62,CHAR(10),B63,CHAR(10),B64,B65,D66,\" \",E66,\",\",\" \",B66,B67,\" \",D33,\",\",\" \",Данные!A2,\" \",Данные!B2,\",\",\" \",Данные!B3,\"\n\",A61,)","v":"Группа г. Железнодорожный ТЦ Центральный\nПетров Петр - 0 по 0\nИванов Иван - 16.02 по 09.02\nСидоров Сидр - 0 по 0\nВасилий Алибабаевич - 0 по 0\nДоцент - 0 по 0\nКотов Кот - 0 по 0\nСмиронов Смирн - 0 по 0\nВАКАНТ - 0 по 0\nВАКАНТ - 0 по 0\nВика - 0 по 0\nСветлогор - 0 по 0\nВАКАНТ - 0 по 0\nГрачев Грач - 0 по 0\nКарпов Карп - 16.01 по 09.02\nВАКАНТ - 0 по 0\nПервая поставка - 16.01\nТехническое открытие - 31.01\nПраздничное открытие - 0\nРуководитель проекта - ГС, 8-102\nТренер на объекте - крок, 8-907\n_________\nДаты командировок указаны без учета дороги! Только даты приезда и отъезда на/с проект(а), при составлении заявки и расчете суточных - учитывайте время необходимое на дорогу!\n_________\nЭлектронная почта руководителя проекта,  ГС sg@m.ru, для подачи заявок на получение денежных средств\n_______\nАдрес объекта: г. Железнодорожный, ТЦ Центральный, Калиновского 1\n_________\nКоллеги АГЗ, напоминаю о табелировании команды стартап в табеле на google диске и о передаче ссылки УМу перед отъездом и напоминании УМу о табелировании команды стартап в данном табеле!"},{"$f":"CONCATENATE(C59,\" - \",TEXT(D59,\"ДД.ММ\"))","v":"Первая поставка - 16.01"},"Первая поставка",{"$f":"Данные!B11","v":"2020-01-16"}]
[null,{"$f":"CONCATENATE(C60,\" - \",TEXT(D60,\"ДД.ММ\"))","v":"Техническое открытие - 31.01"},"Техническое открытие",{"$f":"Данные!B12","v":"2020-01-31"}]
["_________\nКоллеги АГЗ, напоминаю о табелировании команды стартап в табеле на google диске и о передаче ссылки УМу перед отъездом и напоминании УМу о табелировании команды стартап в данном табеле!",{"$f":"CONCATENATE(C61,\" - \",D61)","v":"Праздничное открытие - 0"},"Праздничное открытие",{"$f":"Данные!B13","v":0}]
[null,{"$f":"CONCATENATE(C62,\" - \",D62,\", \",E62)","v":"Руководитель проекта - ГС, 8-102"},"Руководитель проекта",{"$f":"Данные!B14","v":"ГС"},{"$f":"LOOKUP(D62,I111:I120,J111:J120)","v":"8-102"}]
[null,{"$f":"CONCATENATE(C63,\" - \",D63,\", \",E63)","v":"Тренер на объекте - крок, 8-907"},"Тренер на объекте",{"$f":"LOOKUP(C64,E129:E143,C129:C143)","v":"крок"},{"$f":"LOOKUP(D63,C111:C127,D111:D127)","v":"8-907"}]
[null,"_________\nДаты командировок указаны без учета дороги! Только даты приезда и отъезда на/с проект(а), при составлении заявки и расчете суточных - учитывайте время необходимое на дорогу!\n_________\n",{"$f":"Данные!B15","v":2}]
[null,"Электронная почта руководителя проекта,  "]
[null,"для подачи заявок на получение денежных средств\n_______\n","Руководитель проекта",{"$f":"Данные!B14","v":"ГС"},{"$f":"LOOKUP(D62,I111:I120,K111:K120)","v":"sg@m.ru"}]
[null,"Адрес объекта: г."]
[]
["Текст письмо"]
[{"$f":"CONCATENATE(\"РП \",Данные!B1,\" \",Данные!A2,\" \",Данные!B2)","v":"РП Железнодорожный ТЦ Центральный"},null,null,{"$f":"Данные!B1","v":"Железнодорожный"}]
[{"$f":"CONCATENATE(B72,CHAR(10),B73,\"\n\n\n\n\",B74)","v":"Во вложении файл с датами командировки в г. Железнодорожный старт-ап команды, ФИО участников и их расчетная часть з/п. \nК командировкам всех сотрудников добавлен 1 дня -до и 1 день -после, на заселение и выселение, время требуемое на дорогу до/с объекта не учтено. \nПрошу сообщить о согласовании командировки данных участников.\n\n\n\nsg@m.ru"},{"$f":"CONCATENATE(C71,\" \", D70,\" \",E71,\" \",F71)","v":"Данные по старт-ап команде г. Железнодорожный ТЦ Центральный"},"Данные по старт-ап команде г.",{"$f":"Данные!B1","v":"Железнодорожный"},"ТЦ",{"$f":"Данные!B2","v":"Центральный"}]
[null,{"$f":"CONCATENATE(C72,\" \", D71,\" \",E72,\" \",F72)","v":"Во вложении файл с датами командировки в г. Железнодорожный старт-ап команды, ФИО участников и их расчетная часть з/п. \nК командировкам всех сотрудников добавлен 1 дня -до и 1 день -после, на заселение и выселение, время требуемое на дорогу до/с объекта не учтено. "},"Во вложении файл с датами командировки в г.",null,"старт-ап команды, ФИО участников и их расчетная часть з/п. \nК командировкам всех сотрудников добавлен 1 дня -до и 1 день -после, на заселение и выселение, время требуемое на дорогу до/с объекта не учтено."]
[null,"Прошу сообщить о согласовании командировки данных участников."]
[null,{"$f":"E66","v":"sg@m.ru"}]
[]
[]
[]
[]
[]
["Письмо УМ"]
[{"$f":"CONCATENATE(\"УМ \",Данные!B1,\" \",Данные!A2,\" \",Данные!B2)","v":"УМ Железнодорожный ТЦ Центральный"}]
[{"$f":"CONCATENATE(B82,\nCHAR(10),B85,CHAR(10),B86,CHAR(10),B87,CHAR(10),B88,CHAR(10),B89,CHAR(10),B90,CHAR(10),B91,CHAR(10),B92,CHAR(10),B93,CHAR(10),B94,CHAR(10),B95,CHAR(10),B96,CHAR(10),B97,CHAR(10),B98,CHAR(10),B99,CHAR(10),B100,CHAR(10),B101,CHAR(10),B102,CHAR(10),B103,CHAR(10),B104,CHAR(10),B105,CHAR(10),B106,CHAR(10),B107,CHAR(10),B108,\n\nCHAR(10),B83,B84,)","v":"Уважаемые Управляющие, довожу до вашего сведения о предстоящей командировке ваших сотрудников:\n\n\nПетров Петр с 0 по 0       direktor-179 \nИванов Иван с 16.02 по 09.02       direktor-086 \nСидоров Сидр с 0 по 0        direktor-212 \nВасилий Алибабаевич с 0 по 0        direktor-213 \nДоцент с 0 по 0        direktor-214 \nКотов Кот с 0 по 0       direktor-008 \nСмиронов Смирн с 0 по 0       direktor-016 \nВАКАНТ с 0 по 0       0 \nВАКАНТ с 0 по 0       0 \nВика с 0 по 0       direktor-184@ \nСветлогор с 0 по 0       direktor-180@ \nВАКАНТ с 0 по 0       0 \nГрачев Грач с 0 по 0       direktor-136 \nКарпов Карп с 16.01 по 09.02       direktor-137 \nВАКАНТ с 0 по 0       0 \nВАКАНТ с 0 по 0       0 \nВАКАНТ с 0 по 0       0 \nМитя с 0 по 0       direktor-008  \nНастя с 0 по 0       direktor-109  \nКоля с 0 по 0       direktor-092  \nИгорь с 0 по 0       direktor-004  \nВикор с 0 по 0       direktor-221  \nДима с 0 по 0       direktor-160  \nСаша с 0 по 0       direktor-082  \n\nДаты указаны без учета затраченного времени на дорогу к месту командировки и возвращения из нее: только даты приезда на проект и отъезда с него. Точную дату выезда в командировку и дату возвращения из нее Ваш сотрудник предоставит после покупки билетов.\nНеобходимо учесть данный интервал дат при составлении табеля рабочего времени в Вашем магазине: один день до и два дня после обязательные выходные!\n\nПрошу подтвердить получение данного письма."},"Уважаемые Управляющие, довожу до вашего сведения о предстоящей командировке ваших сотрудников:\n\n"]
[null,"\nДаты указаны без учета затраченного времени на дорогу к месту командировки и возвращения из нее: только даты приезда на проект и отъезда с него. Точную дату выезда в командировку и дату возвращения из нее Ваш сотрудник предоставит после покупки билетов.\nНеобходимо учесть данный интервал дат при составлении табеля рабочего времени в Вашем магазине: один день до и два дня после обязательные выходные!\n"]
[null,"\nПрошу подтвердить получение данного письма."]
[null,{"$f":"CONCATENATE(I2,\" \",D2,\" \",E2,\" \",F2,\" \",G2,\" \",\" \",\" \",\" \",\" \",\" \",\" \",X2,\" \",Y2)","v":"Петров Петр с 0 по 0       direktor-179 "}]
[null,{"$f":"CONCATENATE(I3,\" \",D3,\" \",E3,\" \",F3,\" \",G3,\" \",\" \",\" \",\" \",\" \",\" \",\" \",X3,\" \",Y3)","v":"Иванов Иван с 16.02 по 09.02       direktor-086 "}]
[null,"Сидоров Сидр с 0 по 0        direktor-212 "]
[null,"Василий Алибабаевич с 0 по 0        direktor-213 "]
[null,"Доцент с 0 по 0        direktor-214 "]
[null,"Котов Кот с 0 по 0       direktor-008 "]
[null,"Смиронов Смирн с 0 по 0       direktor-016 "]
[null,"ВАКАНТ с 0 по 0       0 "]
[null,"ВАКАНТ с 0 по 0       0 "]
[null,"Вика с 0 по 0       direktor-184@ "]
[null,"Светлогор с 0 по 0       direktor-180@ "]
[null,"ВАКАНТ с 0 по 0       0 "]
[null,"Грачев Грач с 0 по 0       direktor-136 "]
[null,"Карпов Карп с 16.01 по 09.02       direktor-137 "]
[null,"ВАКАНТ с 0 по 0       0 "]
[null,"ВАКАНТ с 0 по 0       0 "]
[null,"ВАКАНТ с 0 по 0       0 "]
[null,"Митя с 0 по 0       direktor-008  "]
[null,"Настя с 0 по 0       direktor-109  "]
[null,"Коля с 0 по 0       direktor-092  "]
[null,"Игорь с 0 по 0       direktor-004  "]
[null,"Викор с 0 по 0       direktor-221  "]
[null,"Дима с 0 по 0       direktor-160  "]
[null,"Саша с 0 по 0       direktor-082  "]
[]
[null,null,"АГЗ",null,null,null,null,null,"РП","Телефон","mail"]
[null,null,"бас","8-900",10,null,null,null,"АД","8-100","d.a@m.ru"]
[null,null,"бер","8-901",3,null,null,null,"БМ","8-101","mb@m.ru"]
[null,null,"грин","8-902",7,null,null,null,"ГС","8-102","sg@m.ru"]
[null,null,"зав","8-903",6,null,null,null,"КП","8-103","pk@m.ru"]
[null,null,"илю","8-904",15,null,null,null,"ЛП","8-104","pl@m.ru"]
[null,null,"кар","8-905",14,null,null,null,"ОД","8-105","do@m.ru"]
[null,null,"карп","8-906",1,null,null,null,"ПЕ","8-106","ep@m.ru"]
[null,null,"крок","8-907",2,null,null,null,"СД","8-107","ds@m.ru"]
[null,null,"мих","8-908",4,null,null,null,"ЯВ","8-108","vy@m.ru"]
[null,null,"пер","8-909",9]
[null,null,"рез","8-910",8]
[null,null,"сбр","8-911",5]
[null,null,"хам","8-912",13]
[]
[]
[null,null,"шад","8-913",11]
[null,null,"шум","8-914",12]
[]
[null,null,"карп","8-906",1]
[null,null,"крок","8-907",2]
[null,null,"бер","8-901",3]
[null,null,"мих","8-908",4]
[null,null,"сбр","8-911",5]
[null,null,"зав","8-903",6]
[null,null,"грин","8-902",7]
[null,null,"рез","8-910",8]
[null,null,"пер","8-909",9]
[null,null,"бас","8-900",10]
[null,null,"шад","8-913",11]
[null,null,"шум","8-914",12]
[null,null,"хам","8-912",13]
[null,null,"кар","8-905",14]
[null,null,"илю","8-904",15]